Cogmind - Beta 15 @@@ ROGUE MODE // 2025.07.02 @ 21:15:01 Player: Wulphy Result: Destroyed by B-86 Titan with Hardcell Cannon Performance ------------- Evolutions (5) 2500 Regions Visited (19) 3800 Robots Destroyed (135) 675 Value Destroyed (4526) 4526 Prototype IDs (44) 880 Alien Tech Used (1) 200 Bonus (2729) 2729 TOTAL SCORE: 15310 Bonus ------- High Alert Combat Kills 11 Follower Combat Kills 1332 Registered with UFD 300 Met Optimus in HQ 500 Met Data Miner 300 Met Zhirov 300 Friendly Fire -14 Cogmind --------- Core Integrity 0/1000 Matter 221/300 Energy 336/345 System Corruption 18% Temperature Cool (3) Movement Walking (120) Location -4/Proximity Caves Parts ------- > --- POWER (2) -------- Light Angular Momentum Engine Fusion Reactor > --- PROPULSION (6) --- Advanced Myomer Leg Advanced Myomer Leg Advanced Myomer Leg Makeshift Flight Unit Cooled Cesium-ion Thruster > --- UTILITY (6) ------ Advanced Signal Interpreter Improved Melee Analysis Suite Improved Melee Analysis Suite Layered Medium Armor Plating Advanced Hacking Suite > --- WEAPON (3) ------- Hypervelocity Gauss Cannon LU-1G1's Laser Shovel Heavy Pick > --- INVENTORY (5) ---- Huge Storage Unit Improved Matter Compressor (0) Makeshift ECM Suite Transdimensional Reconstructor Peak State ------------ > --- POWER ------------ Fission Core Antimatter Reactor > --- PROPULSION ------- Heavy Treads Heavy Shield Leg Wheel Compact Wheel > --- UTILITY ---------- Huge Storage Unit Deep Structural Scanner Experimental Sensor Array Improved Launcher Guidance Computer Armor Integrity Analyzer Improved Medium Armor Plating > --- WEAPON ----------- Neutron Cannon Heavy Battle Rifle Heavy Battle Rifle > --- INVENTORY -------- Antimatter Reactor Antimatter Reactor Heavy Armored Exoskeleton Improved Cooling System Improved Cooling System Energy Well High-capacity Matter Pod Advanced Signal Interpreter Experimental Terrain Scanner Damper Plating Advanced Powered Armor Improved Shock Absorption System High-powered Tractor Beam Mapping Drone Bay Beamcaster Magnetic Acceleration Cannon Long-range Missile Launcher LU-1G1's Laser Shovel Improved Plasma Cutter [Rating: 101] Favorites ----------- Power Improved Ion Engine Engine Improved Ion Engine Power Core Fission Core Reactor Antimatter Reactor Propulsion Light Treads Treads Light Treads Leg Advanced Myomer Leg Wheel Compact Wheel Hover Unit Linear Gravjet Flight Unit Cooled Cesium-ion Thruster Utility Huge Storage Unit Device Seismic Detector Storage Huge Storage Unit Processor Armor Integrity Analyzer Hackware Makeshift Hacking Suite Protection Heavy Armor Plating Weapon Heavy Particle Cannon Energy Gun Plasma Rifle Energy Cannon Heavy Particle Cannon Ballistic Gun Improved Assault Rifle Ballistic Cannon Assault Cannon Launcher EMP Blaster Special Weapon LU-1G1's Laser Shovel Piercing Weapon Heavy Pick Build | -11 -10 -10 -9 -8 -8 -8 -8 -6 -6 -6 -6 -5 -5 -5 -5 -5 -5 -5 -4 ------- Run | Yrd Mat Min Mat Mat Sto Rec Scr Fac Low Low Dat Pro Fac Was Fac Upp Upp Zhi Pro Slots Evolved 10 | . . . 2 2 . . . 4 . . . . 2 . . . . . . Power 1 | . . . . . . . . . . . . . 1 . . . . . . Propulsion 4 | . . . 1 1 . . . 2 . . . . . . . . . . . Utility 4 | . . . 1 1 . . . 1 . . . . 1 . . . . . . Weapon 1 | . . . . . . . . 1 . . . . . . . . . . . Parts Attached 167 | 7 2 1 20 16 13 1 12 15 12 2 . 4 . 10 33 9 3 6 1 Power 16 | 1 . . 3 1 1 . 2 . 1 . . . . 2 2 1 1 1 . Engine 11 | 1 . . 3 1 1 . 2 . 1 . . . . . . 1 1 . . Core 1 | . . . . . . . . . . . . . . 1 . . . . . Reactor 4 | . . . . . . . . . . . . . . 1 2 . . 1 . Propulsion 50 | 2 . . 5 4 8 . 6 1 2 1 . . . 2 9 6 1 3 . Treads 30 | 2 . . 4 4 6 . 3 1 1 . . . . 1 2 6 . . . Leg 6 | . . . . . . . . . . . . . . 1 2 . . 3 . Wheel 10 | . . . 1 . 1 . 3 . 1 1 . . . . 3 . . . . Hover 2 | . . . . . 1 . . . . . . . . . 1 . . . . Flight 2 | . . . . . . . . . . . . . . . 1 . 1 . . Utility 55 | 2 1 1 5 4 3 . 2 8 4 1 . 2 . 1 16 2 1 2 . Device 22 | 1 . . 1 1 . . 1 4 2 1 . . . . 9 1 1 . . Storage 6 | 1 1 . 1 . . . 1 . . . . . . . 1 . . 1 . Processor 10 | . . . 1 1 1 . . 1 . . . 1 . . 5 . . . . Hackware 3 | . . . . 1 . . . 1 . . . . . . . . . 1 . Protection 14 | . . 1 2 1 2 . . 2 2 . . 1 . 1 1 1 . . . Artifact . | . . . . . . . . . . . . . . . . . . . . Weapon 46 | 2 1 . 7 7 1 1 2 6 5 . . 2 . 5 6 . . . 1 Energy Gun 15 | 1 1 . 1 5 1 . . 3 . . . 1 . 1 1 . . . . Energy Cannon 2 | . . . . 1 . . . . . . . . . 1 . . . . . Ballistic Gun 15 | 1 . . 3 . . . 1 2 2 . . . . 3 3 . . . . Ballistic Cannon 5 | . . . . . . 1 . . 2 . . . . . 1 . . . 1 Launcher 5 | . . . 2 1 . . 1 . . . . 1 . . . . . . . Special Weapon 3 | . . . 1 . . . . 1 1 . . . . . . . . . . Impact Weapon . | . . . . . . . . . . . . . . . . . . . . Slashing Weapon . | . . . . . . . . . . . . . . . . . . . . Piercing Weapon 1 | . . . . . . . . . . . . . . . 1 . . . . Special Melee Weapon . | . . . . . . . . . . . . . . . . . . . . Unidentified Prototypes 14 | . . . 2 2 2 . . 1 1 . . . . 1 1 . . 4 . Parts Lost 50 | . . . . . . . 10 . 11 1 . 2 . . 23 2 . . 1 Power 6 | . . . . . . . 2 . . . . . . . 4 . . . . Propulsion 16 | . . . . . . . 2 . 6 . . . . . 6 2 . . . Utility 16 | . . . . . . . 4 . 2 1 . 1 . . 7 . . . 1 Weapon 12 | . . . . . . . 2 . 3 . . 1 . . 6 . . . . Highest Loss Streak 19 | . . . . . . . 10 . 7 1 . 1 . . 19 2 . . 1 To Critical Strikes . | . . . . . . . . . . . . . . . . . . . . Average Backups 16 | 3 7 10 14 14 14 15 19 22 21 19 22 21 21 19 18 4 4 5 4 Power 1 | . 1 1 . . 1 1 . 1 1 2 2 2 2 2 1 . . . . Propulsion 2 | 2 2 2 1 1 2 3 4 3 1 . . . . . 1 . . . . Utility 8 | . 1 4 6 6 6 6 8 9 12 12 13 13 13 11 9 3 3 3 3 Weapon 3 | . 2 3 5 4 3 3 4 6 4 2 5 4 4 3 3 . . . . Tool/Special . | . . . . . . . . . . . . . . . . . . . . Unused Backups 41 | . 5 1 6 2 3 1 3 4 . 1 . . . 4 8 . 1 1 1 Power 2 | . 1 . . . 1 . . . . . . . . . . . . . . Propulsion 6 | . 2 . 1 . . . . 1 . . . . . . 2 . . . . Utility 21 | . 1 1 3 1 1 1 2 1 . . . . . 4 4 . 1 1 . Weapon 9 | . 1 . 2 1 1 . 1 2 . . . . . . 1 . . . . Tool/Special 3 | . . . . . . . . . . 1 . . . . 1 . . . 1 Average Slot Usage (%) 89 | . 100 100 97 89 90 90 89 99 93 84 67 77 80 88 84 75 43 69 89 Engine 7 | . 14 14 11 9 9 9 8 6 6 6 6 6 9 5 . 2 1 5 5 Treads 24 | . 28 28 28 35 33 36 22 39 32 13 13 13 11 7 6 19 5 . . Wheel 5 | . . . 3 . 2 . 13 . 2 11 13 12 11 11 13 . . . . Device 10 | . 14 13 9 9 8 9 8 12 12 12 13 7 11 11 12 5 5 5 5 Storage 7 | . 14 14 11 9 9 9 9 6 6 6 6 6 5 5 4 2 . . . Processor 4 | . . . . . . . . 5 6 6 6 11 11 11 9 24 17 17 17 Protection 6 | . . . 11 9 9 9 8 3 6 6 6 6 5 5 4 2 . 2 5 Energy Gun 3 | . 14 14 2 4 12 . . 8 5 . . . 5 2 . . . . . Energy Cannon 3 | . . . . 1 5 9 8 1 . . . . . 3 1 . . . . Ballistic Gun 6 | . 14 14 16 12 . . . 7 7 13 . 7 5 7 9 . . . . Ballistic Cannon 3 | . . . . . . 8 8 . 3 5 . 2 . . 1 . . . 3 Peak Build Rating 101 | 7 9 10 19 27 30 25 34 59 60 54 49 54 57 101 101 62 59 82 92 Average Rating 41 | 5 7 9 16 23 25 24 27 55 54 52 41 49 56 90 83 57 33 68 88 On Entrance 38 | . 7 9 10 18 26 24 24 26 52 46 53 41 52 57 101 46 60 38 81 Naked Turns 25 | . . . . . . . . . . . . . . . 25 . . . . Heaviest Build 150 | 14 20 20 47 53 54 55 115 114 120 118 95 117 104 132 150 96 13 33 46 Greatest Support 120 | 40 40 40 60 80 80 80 80 120 120 26 26 26 26 26 97 112 14 90 90 Greatest Overweight (x) 11 | 4 . . 4 . 4 . 7 1 10 11 3 4 3 5 5 . . . . Average Overweight (x) 1 | . . . . . 1 . 1 . 2 4 3 3 3 4 2 . . . . Largest Inventory Capacity 25 | 8 10 10 15 15 15 15 25 25 25 25 25 25 25 25 25 25 5 5 5 Average Capacity 19 | 7 8 10 14 15 15 15 22 25 25 25 25 25 25 25 22 13 5 5 5 Most Carried 25 | 7 10 10 15 15 15 15 25 25 25 22 24 25 24 25 25 5 5 5 5 Average Carried 17 | 4 7 9 14 14 14 14 20 24 22 20 23 23 24 24 22 4 4 5 4 Final Capacity 25 | 8 10 10 15 15 15 15 25 25 25 25 25 25 25 25 5 25 5 5 5 Final Carried 25 | 7 10 10 15 15 15 15 24 25 19 21 24 25 24 25 5 4 5 5 4 Class Distribution -------------------- 25% | Commander-Mutant 24% | Scavenger-Mutant 19% | Mutant 13% | Scavenger-Skirmisher 8% | Scavenger-Gunner 6% | Scavenger-Tank Dominant Class ---------------- Mutant | -10/Materials Mutant | -10/Mines Scavenger-Mutant | -9/Materials Scavenger-Mutant | -8/Materials Scavenger-Mutant | -8/Storage Commander-Mutant | -8/Recycling Commander-Mutant | -8/Scraptown Scavenger-Skirmisher | -6/Factory Scavenger-Gunner | -6/Lower Caves Scavenger-Skirmisher | -6/Lower Caves Mutant | -6/Data Miner Mutant | -5/Proximity Caves Mutant | -5/Factory Scavenger-Tank | -5/Waste Scavenger-Tank | -5/Factory Scavenger-Mutant | -5/Upper Caves Mutant | -5/Upper Caves Mutant | -5/Zhirov Mutant | -4/Proximity Caves Resources | -11 -10 -10 -9 -8 -8 -8 -8 -6 -6 -6 -6 -5 -5 -5 -5 -5 -5 -5 -4 ----------- Run | Yrd Mat Min Mat Mat Sto Rec Scr Fac Low Low Dat Pro Fac Was Fac Upp Upp Zhi Pro Matter Collected 5979 | 278 . 177 723 554 345 155 230 487 514 421 . 393 . 280 928 291 143 . 60 Remotely 393 | . . . . . . . . . . 31 . . . . 362 . . . . Salvage Created 6005 | 101 . 54 1104 739 502 345 330 476 514 87 . 255 . 264 819 343 72 . . Parts 338 | 6 . 7 63 56 27 16 20 30 23 3 . 8 . 1 46 25 7 . . Haulers Intercepted 8 | . . . 4 . 4 . . . . . . . . . . . . . . Recyclers Shooed 9 | . . . . 1 . 4 . 1 . . . . . . 3 . . . . Parts Field Recycled . | . . . . . . . . . . . . . . . . . . . . Retrieved Matter . | . . . . . . . . . . . . . . . . . . . . Parts Self-Destructed 41 | . . . . . . . . . 20 3 . 6 . . . 6 6 . . Prevented 3 | . . . . . . . . . . . . . . . . . 3 . . Kills | -11 -10 -10 -9 -8 -8 -8 -8 -6 -6 -6 -6 -5 -5 -5 -5 -5 -5 -5 -4 ------- Run | Yrd Mat Min Mat Mat Sto Rec Scr Fac Low Low Dat Pro Fac Was Fac Upp Upp Zhi Pro Combat Hostiles Destroyed 100 | . . 3 16 23 3 4 5 6 9 3 . 6 . 1 17 4 . . . Melee 4 | . . . . . . . . . . . . . . . . 4 . . . Guns 57 | . . 3 12 15 1 . 1 6 8 . . 1 . . 10 . . . . Cannons 18 | . . . . . 2 4 3 . 1 3 . . . 1 4 . . . . AOE 20 | . . . 4 7 . . 1 . . . . 5 . . 3 . . . . Classes Destroyed 22 | 2 . 1 6 1 2 1 2 1 1 . . . . 1 2 1 1 . . Worker 6 | . . . 2 . . . . . . . . . . . 4 . . . . Builder 6 | . . . 1 2 . . . . . . . . . . 3 . . . . Tunneler 3 | 1 . . . 1 . . . 1 . . . . . . . . . . . Hauler 8 | . . . 4 . 4 . . . . . . . . . . . . . . Recycler 7 | 1 . . 2 . . 2 . 1 . . . . . . 1 . . . . Minesweeper 1 | . . . . . . . . . . . . . . . . . 1 . . Mechanic 2 | . . . . . . . . . . . . . . . 2 . . . . Operator 1 | . . . . . 1 . . . . . . . . . . . . . . Watcher 1 | . . . . . 1 . . . . . . . . . . . . . . Swarmer 28 | . . 3 3 13 . . . . . . . . . . 5 4 . . . Grunt 27 | . . . 9 3 1 . . . 6 2 . 5 . . 1 . . . . Brawler 2 | . . . 1 . . . . . . 1 . . . . . . . . . Duelist 1 | . . . . . . 1 . . . . . . . . . . . . . Sentry 17 | . . . 3 6 2 3 . 1 1 . . 1 . . . . . . . Specialist 2 | . . . . . . . . . . . . . . . 2 . . . . Hunter 5 | . . . . 1 . . . . 1 . . . . . 3 . . . . Programmer 11 | . . . . . . . . 5 . . . . . . 6 . . . . Behemoth 1 | . . . . . . . . . 1 . . . . . . . . . . Compactor 1 | . . . . . . . . . . . . . . 1 . . . . . Explorer 1 | . . . . . . . 1 . . . . . . . . . . . . Scrapper 4 | . . . . . . . 4 . . . . . . . . . . . . Samaritan 7 | . . . . . . . . . . . . . . . . 6 1 . . Best Kill Streak 22 | 1 . 3 6 4 2 2 3 2 3 3 . 5 . 1 22 4 1 . . Combat Bots Only 7 | . . 3 6 4 1 2 3 2 3 3 . 5 . 1 7 4 . . . Max Kills in Single Turn 6 | 1 . 2 2 4 1 1 1 1 1 1 . 3 . 1 6 1 1 . . Gunslinging 1 | . . 1 . . . . . . . . . . . . . . . . . Exploded 4 | . . . 1 4 . . 1 . . . . 3 . . 2 . . . . Melee 1 | . . . . . . . . . . . . . . . . 1 . . . Uniques/NPCs Destroyed . | . . . . . . . . . . . . . . . . . . . . Combat | -11 -10 -10 -9 -8 -8 -8 -8 -6 -6 -6 -6 -5 -5 -5 -5 -5 -5 -5 -4 -------- Run | Yrd Mat Min Mat Mat Sto Rec Scr Fac Low Low Dat Pro Fac Was Fac Upp Upp Zhi Pro Hostile Shots Fired 839 | . . 5 71 84 11 4 117 33 126 17 . 12 . . 319 14 11 . 15 Missed 223 | . . 3 10 29 5 2 14 8 35 4 . 3 . . 95 3 5 . 7 Hits 616 | . . 2 61 55 6 2 103 25 91 13 . 9 . . 224 11 6 . 8 Melee 3 | . . . . . . . . . . 3 . . . . . . . . . Projectile 613 | . . 2 61 55 6 2 103 25 91 10 . 9 . . 224 11 6 . 8 Critical Strikes 36 | . . . 1 2 . . 9 3 8 . . . . . 13 . . . . Part Disruptions 1 | . . . . . . . . 1 . . . . . . . . . . . Damage Taken 10310 | . . 16 666 569 80 21 1477 496 1884 220 . 192 . . 4226 165 114 . 184 Core 1846 | . . 9 93 10 . . 144 139 330 50 . 47 . . 956 13 . . 55 Absorbed by Shields 745 | . . . 64 171 9 8 207 . 238 36 . 12 . . . . . . . Ignored by Resistances 282 | . . . . . . . . 75 . . . . . . 207 . . . . Regen/Repaired (Parts) 376 | . . . 84 . . . . 292 . . . . . . . . . . . Core Remaining (%) 75 | 100 . 96 76 . . . 72 . . . . 33 . . . . . . . Volleys Fired 314 | 8 . 2 54 46 30 16 27 18 30 10 . 6 . 10 56 . . . 1 Largest 3 | 2 . 2 2 2 2 2 2 3 3 3 . 3 . 3 3 . . . 1 Hottest 201 | 70 . 76 100 100 100 112 112 183 183 100 . 100 . 187 201 . . . 51 Shots Fired 618 | 16 . 4 98 85 44 31 41 47 78 16 . 12 . 12 133 . . . 1 Gun 426 | 16 . 4 82 78 28 . 8 46 56 6 . 6 . 11 85 . . . . Cannon 163 | . . . . 5 16 31 29 1 21 10 . 3 . 1 45 . . . 1 Launcher 24 | . . . 12 2 . . 4 . . . . 3 . . 3 . . . . Special 5 | . . . 4 . . . . . 1 . . . . . . . . . . Kinetic 359 | 8 . 2 73 62 . 15 15 22 48 16 . 9 . 1 87 . . . 1 Thermal 190 | 8 . 2 13 5 16 16 22 25 29 . . . . 11 43 . . . . Explosive 9 | . . . . 2 . . 1 . . . . 3 . . 3 . . . . Electromagnetic 59 | . . . 12 16 28 . 3 . . . . . . . . . . . . Impact 1 | . . . . . . . . . 1 . . . . . . . . . . Robot Hit Streak 32 | 4 . 6 32 12 5 8 5 13 14 5 . 8 . 10 8 . . . . Robot Miss Streak 5 | 2 . 1 2 2 5 3 2 2 4 5 . 2 . 3 4 . . . . Penetration Max 1 | . . . . . . . . . 1 . . . . . 1 . . . . Secondary Targets 11 | . . 1 4 1 . . . 1 1 . . . . . 3 . . . . Max Gunslinging Chain 1 | . . 1 1 1 . . . 1 1 . . . . . 1 . . . . Shots Hit Robots 442 | 10 . 3 74 63 30 18 25 32 59 12 . 9 . 8 82 13 2 . 2 Core Hits 257 | 3 . 3 40 36 14 8 8 14 31 8 . 20 . 3 57 10 2 . . Critical Kills 7 | . . . 1 . . . . 2 4 . . . . . . . . . . Critical Parts Destroyed 6 | . . . . . . . . 2 3 . . . . . 1 . . . . Critical Strikes 22 | . . . 1 . . . . 6 9 . . 1 . 1 4 . . . . Burn 6 | . . . . . . . . 2 2 . . . . 1 1 . . . . Destroy 13 | . . . 1 . . . . 4 7 . . . . . 1 . . . . Blast 3 | . . . . . . . . . . . . 1 . . 2 . . . . Melee Attacks 25 | . . . . . . . . . . . . . . . 1 17 2 . 5 Impact . | . . . . . . . . . . . . . . . . . . . . Slashing . | . . . . . . . . . . . . . . . . . . . . Piercing 25 | . . . . . . . . . . . . . . . 1 17 2 . 5 Sneak Attacks 10 | . . . . . . . . . . . . . . . . 8 2 . . Combat Hostiles . | . . . . . . . . . . . . . . . . . . . . Follow-up Attacks . | . . . . . . . . . . . . . . . . . . . . Damage Inflicted 13677 | 101 . 30 1623 1488 736 547 983 647 1251 288 . 598 . 206 4136 817 147 . 79 Guns 6093 | 101 . 30 1050 1012 464 . 164 647 820 104 . 126 . 168 1407 . . . . Cannons 2951 | . . . . . 225 547 415 . 431 184 . 68 . 38 1043 . . . . Explosions 3570 | . . . 570 469 47 . 404 . . . . 404 . . 1676 . . . . Melee 1043 | . . . . . . . . . . . . . . . . 817 147 . 79 Ramming 20 | . . . 3 7 . . . . . . . . . . 10 . . . . Kinetic 5124 | 40 . 16 946 701 . 229 304 178 669 288 . 194 . . 1559 . . . . Thermal 3576 | 61 . 14 201 96 272 318 466 469 582 . . . . 206 891 . . . . Explosive 2541 | . . . . 373 . . 88 . . . . 404 . . 1676 . . . . Electromagnetic 1373 | . . . 473 311 464 . 125 . . . . . . . . . . . . Impact . | . . . . . . . . . . . . . . . . . . . . Slashing . | . . . . . . . . . . . . . . . . . . . . Piercing 1043 | . . . . . . . . . . . . . . . . 817 147 . 79 Highest Corruption 18 | . . . 2 . . . . 5 5 5 5 5 . . 18 18 18 18 18 Average Corruption 6 | . . . 2 . . . . 3 5 5 5 5 . . 4 18 18 18 18 Corruption Purged . | . . . . . . . . . . . . . . . . . . . . Corruption Blocked . | . . . . . . . . . . . . . . . . . . . . Effects 195 | . . . 16 . . . . 15 53 15 . 13 . . 26 27 8 4 18 Message Errors 46 | . . . . . . . . 5 14 9 . 1 . . 4 5 3 . 5 Matter Fused 44 | . . . 7 . . . . 3 12 3 . 6 . . 6 5 1 1 . Heat Flow Errors 31 | . . . 1 . . . . 3 11 1 . . . . 3 8 . 1 3 Energy Discharges 20 | . . . 1 . . . . 2 5 . . . . . 3 3 2 2 2 Parts Rejected 1 | . . . . . . . . . 1 . . . . . . . . . . Parts Fused 2 | . . . 1 . . . . . . 1 . . . . . . . . . Data Loss (minor) 27 | . . . 4 . . . . 1 6 1 . 4 . . 3 3 . . 5 Data Loss (major) 8 | . . . . . . . . . 1 . . 2 . . 1 3 1 . . Misfires 7 | . . . 2 . . . . 1 2 . . . . . 2 . . . . Alerts 2 | . . . . . . . . . . . . . . . . . 1 . 1 Misdirections 3 | . . . . . . . . . . . . . . . 1 . . . 2 Weapon Failures 4 | . . . . . . . . . 1 . . . . . 3 . . . . Overload Shots . | . . . . . . . . . . . . . . . . . . . . Overflow Damage 329 | . . . . 38 4 9 2 . . 39 . . . . 164 64 . . 9 Projectiles 87 | . . . . . 4 9 . . . 39 . . . . 35 . . . . Explosions 169 | . . . . 38 . . 2 . . . . . . . 129 . . . . Melee 73 | . . . . . . . . . . . . . . . . 64 . . 9 Knockbacks 15 | . . . . . . 2 1 . 3 2 . . . . 7 . . . . Impact . | . . . . . . . . . . . . . . . . . . . . Kinetic 13 | . . . . . . 2 1 . 2 2 . . . . 6 . . . . Secondary 2 | . . . . . . . . . 1 . . . . . 1 . . . . Self-Inflicted Damage 366 | . . . 4 61 . . 4 198 . . . . . . 99 . . . . Shots 9 | . . . 1 2 . . 1 2 . . . . . . 3 . . . . Rammed 4 | . . . 1 1 . . . . . . . . . . 2 . . . . Targets Rammed 4 | . . . 1 1 . . . . . . . . . . 2 . . . . Kicked . | . . . . . . . . . . . . . . . . . . . . Crushed . | . . . . . . . . . . . . . . . . . . . . Highest Temperature 695 | 100 . 52 211 138 180 174 405 312 695 243 . 9 . 138 252 244 . 101 258 Average Temperature 95 | 43 . 28 68 44 59 62 157 91 169 123 . 5 . 42 86 108 . 83 96 Received Heat Transfer 2979 | . . . 250 159 39 12 856 . 1228 45 . 51 . . 303 . 36 . . Effects 20 | . . . . . . . 4 . 16 . . . . . . . . . . Shutdowns 2 | . . . . . . . 1 . 1 . . . . . . . . . . Energy Bleed 3 | . . . . . . . 2 . 1 . . . . . . . . . . Interference 4 | . . . . . . . . . 4 . . . . . . . . . . Matter Decay 1 | . . . . . . . . . 1 . . . . . . . . . . Short Circuit 2 | . . . . . . . 1 . 1 . . . . . . . . . . Damage (minor) 2 | . . . . . . . . . 2 . . . . . . . . . . Damage (major) 4 | . . . . . . . . . 4 . . . . . . . . . . Damage (core) 2 | . . . . . . . . . 2 . . . . . . . . . . Siege Activations . | . . . . . . . . . . . . . . . . . . . . Martial Activations . | . . . . . . . . . . . . . . . . . . . . Shielding Activations . | . . . . . . . . . . . . . . . . . . . . Robots Disrupted . | . . . . . . . . . . . . . . . . . . . . Combat Hostiles . | . . . . . . . . . . . . . . . . . . . . Robots Corrupted 1 | . . . . 1 . . . . . . . . . . . . . . . Combat Hostiles 1 | . . . . 1 . . . . . . . . . . . . . . . Parts Fried 11 | . . . 2 4 4 . 1 . . . . . . . . . . . . Impact Corruptions . | . . . . . . . . . . . . . . . . . . . . Robots Melted . | . . . . . . . . . . . . . . . . . . . . Combat Hostiles . | . . . . . . . . . . . . . . . . . . . . Parts Melted 11 | . . . . . . . . 8 3 . . . . . . . . . . Heat Transferred 5607 | 185 . 37 409 100 383 472 509 1100 1450 . . . . 407 555 . . . . Parts Sabotaged . | . . . . . . . . . . . . . . . . . . . . Parts Stolen . | . . . . . . . . . . . . . . . . . . . . Parts Stripped . | . . . . . . . . . . . . . . . . . . . . Power Chain Reactions 12 | . . . 8 1 1 . 2 . . . . . . . . . . . . Alert | -11 -10 -10 -9 -8 -8 -8 -8 -6 -6 -6 -6 -5 -5 -5 -5 -5 -5 -5 -4 ------- Run | Yrd Mat Min Mat Mat Sto Rec Scr Fac Low Low Dat Pro Fac Was Fac Upp Upp Zhi Pro Maximum Alert Level 2 | . . . 1 1 2 . . . . . . . . . 1 . . . . Low Security (%) 80 | 100 100 100 34 87 40 100 . 100 . . . . 100 100 87 . . . . Level 1 13 | . . . 65 12 3 . . . . . . . . . 12 . . . . Level 2 6 | . . . . . 55 . . . . . . . . . . . . . . Level 3 . | . . . . . . . . . . . . . . . . . . . . Level 4 . | . . . . . . . . . . . . . . . . . . . . Level 5 . | . . . . . . . . . . . . . . . . . . . . High Security . | . . . . . . . . . . . . . . . . . . . . Max Security . | . . . . . . . . . . . . . . . . . . . . Peak Influence 561 | 5 9 70 348 299 561 193 . 75 . . . . 6 . 289 . . . . Initial 193 | . . . . 96 120 193 . . . . . . . . . . . . . Average 107 | . . 16 210 122 342 84 . 17 . . . . . . 41 . . . . Influence Increases 4360 | 10 19 70 750 643 914 341 . 294 250 70 . 130 6 . 738 90 35 . . Destroy 0b10 Robot/C 2440 | . . 60 500 460 400 120 . 120 180 60 . 120 . . 340 80 . . . Destroy 0b10 Robot/NC 185 | 10 . . 45 15 35 15 . 10 . . . . . . 50 . 5 . . Destroy Leader 558 | . . 10 128 110 130 . . 60 40 10 . 10 . . 50 10 . . . Allied During Kill 257 | . . . 23 . 208 26 . . . . . . . . . . . . . Trap Triggered on 0b10 30 | . . . . . 30 . . . . . . . . . . . . . . Successful Hack 121 | . 19 . 16 12 15 23 . 6 . . . . 6 . 24 . . . . Select Force Hacks 150 | . . . . . . 150 . . . . . . . . . . . . . Disable Machine 180 | . . . 15 . 60 . . 45 . . . . . . 60 . . . . Destroy Structure 169 | . . . 23 31 6 7 . 38 . . . . . . 64 . . . . Partial Spotted 45 | . . . . . . . . 15 . . . . . . 30 . . . . Lose Combat Pursuer 225 | . . . . 15 30 . . . 30 . . . . . 120 . 30 . . Influence Decreases 4360 | 10 19 70 521 585 703 767 72 270 274 70 . 130 6 . 438 390 35 . . Entered New Map 798 | . . . . 133 167 305 72 . 10 . . . . . . 111 . . . Time Decay 3084 | 10 19 70 481 452 416 462 . 242 234 70 . 130 6 . 198 259 35 . . Lost Part 270 | . . . . . . . . . 30 . . . . . 220 20 . . . Lost Ally 180 | . . . 40 . 120 . . . . . . . . . 20 . . . . Purge Threat 28 | . . . . . . . . 28 . . . . . . . . . . . Squads Dispatched 18 | . . . 5 3 1 . . 3 . . . . . . 6 . . . . Investigation 4 | . . . 3 1 . . . . . . . . . . . . . . . Extermination 6 | . . . . . . . . 3 . . . . . . 3 . . . . Reinforcement 8 | . . . 2 2 1 . . . . . . . . . 3 . . . . Assault . | . . . . . . . . . . . . . . . . . . . . Garrison . | . . . . . . . . . . . . . . . . . . . . Intercept . | . . . . . . . . . . . . . . . . . . . . Searches Triggered . | . . . . . . . . . . . . . . . . . . . . Data Miner Redirects 2 | . . . . . . . . . . . . . . . 2 . . . . Construction Impeded 1 | . . . . . . . . . . . . . . . 1 . . . . Haulers Reinforced . | . . . . . . . . . . . . . . . . . . . . Active Scanning Responses . | . . . . . . . . . . . . . . . . . . . . Cargo Convoy Interrupts 1 | . . . . . . . . . . . . . . . 1 . . . . Stealth | -11 -10 -10 -9 -8 -8 -8 -8 -6 -6 -6 -6 -5 -5 -5 -5 -5 -5 -5 -4 --------- Run | Yrd Mat Min Mat Mat Sto Rec Scr Fac Low Low Dat Pro Fac Was Fac Upp Upp Zhi Pro Distress Signals 9 | . . . 1 2 2 . . . . . . . . . 3 . . . 1 Communications Jammed 19 | . . . . . . . . . . . . . . . 19 . . . . Distress Signals 19 | . . . . . . . . . . . . . . . 19 . . . . Times Spotted 208 | . 1 3 37 34 23 6 18 5 10 4 . 6 . 1 42 4 3 . 11 Peak Tracking Total 13 | . 1 3 6 5 5 3 5 2 3 3 . 5 . 1 13 4 3 . 6 Tactical Retreats 11 | . . . . 1 2 . . . 2 . . . . . 5 . 1 . . Traps | -11 -10 -10 -9 -8 -8 -8 -8 -6 -6 -6 -6 -5 -5 -5 -5 -5 -5 -5 -4 ------- Run | Yrd Mat Min Mat Mat Sto Rec Scr Fac Low Low Dat Pro Fac Was Fac Upp Upp Zhi Pro Traps Triggered 8 | . . . 1 1 . . . . . . . . 1 . 5 . . . . Indirectly . | . . . . . . . . . . . . . . . . . . . . Trap Hack Attempts . | . . . . . . . . . . . . . . . . . . . . Triggered . | . . . . . . . . . . . . . . . . . . . . Disarmed 6 | . . . . 6 . . . . . . . . . . . . . . . Reprogrammed 6 | . . . . . 6 . . . . . . . . . . . . . . Reused 3 | . . . . . 3 . . . . . . . . . . . . . . Traps Extracted . | . . . . . . . . . . . . . . . . . . . . Installed . | . . . . . . . . . . . . . . . . . . . . Triggered 3 | . . . . . 3 . . . . . . . . . . . . . . Most Traps Carried 2 | . . . . . . . . . . . . 2 2 2 . . . . . Machines | -11 -10 -10 -9 -8 -8 -8 -8 -6 -6 -6 -6 -5 -5 -5 -5 -5 -5 -5 -4 ---------- Run | Yrd Mat Min Mat Mat Sto Rec Scr Fac Low Low Dat Pro Fac Was Fac Upp Upp Zhi Pro Machines Disabled 17 | . . . 1 . 4 . 4 3 . . . . . . 4 1 . . . Max in Single Turn 3 | . . . 1 . 1 . 1 3 . . . . . . 1 1 . . . Machines Repaired . | . . . . . . . . . . . . . . . . . . . . Machines Dismantled . | . . . . . . . . . . . . . . . . . . . . Machines Sabotaged . | . . . . . . . . . . . . . . . . . . . . Overloaded Fab Kills . | . . . . . . . . . . . . . . . . . . . . Hacking | -11 -10 -10 -9 -8 -8 -8 -8 -6 -6 -6 -6 -5 -5 -5 -5 -5 -5 -5 -4 --------- Run | Yrd Mat Min Mat Mat Sto Rec Scr Fac Low Low Dat Pro Fac Was Fac Upp Upp Zhi Pro Machines Accessed 64 | . 2 . 5 6 12 10 3 4 . 1 4 . 1 . 9 1 . 5 1 Terminals 36 | . 2 . 4 5 11 5 . 2 . . . . . . 6 . . . 1 Fabricators . | . . . . . . . . . . . . . . . . . . . . Repair Stations 7 | . . . 1 1 1 . . 2 . . . . 1 . 1 . . . . Recycling Units 5 | . . . . . . 5 . . . . . . . . . . . . . Scanalyzers 1 | . . . . . . . . . . . . . . . 1 . . . . Garrison Access 1 | . . . . . . . . . . . . . . . 1 . . . . Total Hacks 201 | . 10 . 10 17 36 18 25 15 . 1 29 . 1 . 13 7 . 18 1 Successful 142 | . 6 . 6 6 18 12 25 11 . 1 29 . 1 . 1 7 . 18 1 Failed 59 | . 4 . 4 11 18 6 . 4 . . . . . . 12 . . . . Catastrophic 15 | . . . 1 2 4 1 . 2 . . . . . . 5 . . . . Database Lockouts . | . . . . . . . . . . . . . . . . . . . . Manual 54 | . 6 . 7 9 16 7 . 7 . . . . . . 2 . . . . Terminals 94 | . 10 . 8 15 32 13 . 8 . . . . . . 7 . . . 1 Fabricators . | . . . . . . . . . . . . . . . . . . . . Repair Stations 18 | . . . 2 2 4 . . 7 . . . . 1 . 2 . . . . Recycling Units 5 | . . . . . . 5 . . . . . . . . . . . . . Scanalyzers 3 | . . . . . . . . . . . . . . . 3 . . . . Garrison Access 1 | . . . . . . . . . . . . . . . 1 . . . . Terminal Hacks 110 | . 3 . 2 5 11 5 25 3 . 1 29 . . . . 7 . 18 1 Record 44 | . . . . . . . 19 . . . 11 . . . . 7 . 6 1 Part Schematic 15 | . . . . . . . . . . . 11 . . . . . . 4 . Robot Schematic 4 | . . . . . . . . . . . 4 . . . . . . . . Robot Analysis 10 | . . . . . . . 6 . . . . . . . . . . 4 . Prototype ID Bank 11 | . 1 . . 1 1 1 . . . . 3 . . . . . . 4 . Open Door 4 | . . . . . 3 . . . . 1 . . . . . . . . . Level Access Points 2 | . . . 1 . . 1 . . . . . . . . . . . . . Branch Access Points 4 | . . . 1 1 1 . . 1 . . . . . . . . . . . Alert Level 2 | . . . . . 1 1 . . . . . . . . . . . . . Unreport Threat 1 | . . . . . . . . 1 . . . . . . . . . . . Locate Traps 2 | . . . . 1 1 . . . . . . . . . . . . . . Disarm Traps 1 | . . . . 1 . . . . . . . . . . . . . . . Reprogram Traps 1 | . . . . . 1 . . . . . . . . . . . . . . Security Status 1 | . . . . . 1 . . . . . . . . . . . . . . Hauler Manifests 2 | . . . . . 1 1 . . . . . . . . . . . . . Zone Layout 6 | . 2 . . 1 1 1 . 1 . . . . . . . . . . . Fabricator Hacks . | . . . . . . . . . . . . . . . . . . . . Repair Station Hacks 11 | . . . 2 . 2 . . 5 . . . . 1 . 1 . . . . Scan Component 8 | . . . 1 . 2 . . 4 . . . . . . 1 . . . . Repair 2 | . . . 1 . . . . 1 . . . . . . . . . . . Refit 1 | . . . . . . . . . . . . . 1 . . . . . . Recycling Unit Hacks . | . . . . . . . . . . . . . . . . . . . . Scanalyzer . | . . . . . . . . . . . . . . . . . . . . Garrison Access Hacks . | . . . . . . . . . . . . . . . . . . . . Unauthorized Hacks 21 | . 3 . 2 1 5 7 . 3 . . . . . . . . . . . Terminals 16 | . 3 . 2 1 5 2 . 3 . . . . . . . . . . . Botnet 12 | . 2 . 2 1 3 2 . 2 . . . . . . . . . . . Operators 4 | . 1 . . . 2 . . 1 . . . . . . . . . . . Fabricators . | . . . . . . . . . . . . . . . . . . . . Repair Stations . | . . . . . . . . . . . . . . . . . . . . Recycling Units 5 | . . . . . . 5 . . . . . . . . . . . . . Tunnel 5 | . . . . . . 5 . . . . . . . . . . . . . Scanalyzers . | . . . . . . . . . . . . . . . . . . . . Garrison Access . | . . . . . . . . . . . . . . . . . . . . Data Cores Recovered 1 | . . . . . 1 . . . . . . . . . . . . . . Used . | . . . . . . . . . . . . . . . . . . . . Hacking Detections 41 | . 2 . 4 6 11 4 . 4 . . . . 1 . 9 . . . . Full Trace Events 2 | . . . . 1 1 . . . . . . . . . . . . . . Feedback Events . | . . . . . . . . . . . . . . . . . . . . Feedback Blocked . | . . . . . . . . . . . . . . . . . . . . Robot Schematics Acquired 4 | . . . . . . . . . . . 4 . . . . . . . . Robots Built . | . . . . . . . . . . . . . . . . . . . . Authchips . | . . . . . . . . . . . . . . . . . . . . Time . | . . . . . . . . . . . . . . . . . . . . Total Robot Build Rating . | . . . . . . . . . . . . . . . . . . . . Part Schematics Acquired 15 | . . . . . . . . . . . 11 . . . . . . 4 . Parts Built . | . . . . . . . . . . . . . . . . . . . . Authchips . | . . . . . . . . . . . . . . . . . . . . Time . | . . . . . . . . . . . . . . . . . . . . Total Part Build Rating . | . . . . . . . . . . . . . . . . . . . . Parts Repaired 2 | . . . 1 . . . . 1 . . . . . . . . . . . Time 85 | . . . 32 . . . . 53 . . . . . . . . . . . Parts Recycled . | . . . . . . . . . . . . . . . . . . . . Recycled Matter . | . . . . . . . . . . . . . . . . . . . . Retrieved Matter . | . . . . . . . . . . . . . . . . . . . . Retrieved Components . | . . . . . . . . . . . . . . . . . . . . Parts Scanalyzed . | . . . . . . . . . . . . . . . . . . . . Part Schematics Acquired . | . . . . . . . . . . . . . . . . . . . . Parts Damaged . | . . . . . . . . . . . . . . . . . . . . Bothacking | -11 -10 -10 -9 -8 -8 -8 -8 -6 -6 -6 -6 -5 -5 -5 -5 -5 -5 -5 -4 ------------ Run | Yrd Mat Min Mat Mat Sto Rec Scr Fac Low Low Dat Pro Fac Was Fac Upp Upp Zhi Pro Used RIF Installer . | . . . . . . . . . . . . . . . . . . . . Robots Hacked . | . . . . . . . . . . . . . . . . . . . . Non-combat . | . . . . . . . . . . . . . . . . . . . . Combat . | . . . . . . . . . . . . . . . . . . . . Robot Hacks Applied . | . . . . . . . . . . . . . . . . . . . . Relay Couplers Released . | . . . . . . . . . . . . . . . . . . . . Fabnet Peak Effective % . | . . . . . . . . . . . . . . . . . . . . Robots Rewired 18 | . . . . . . 18 . . . . . . . . . . . . . Allies Hacked . | . . . . . . . . . . . . . . . . . . . . Hacks Repelled . | . . . . . . . . . . . . . . . . . . . . Allies | -11 -10 -10 -9 -8 -8 -8 -8 -6 -6 -6 -6 -5 -5 -5 -5 -5 -5 -5 -4 -------- Run | Yrd Mat Min Mat Mat Sto Rec Scr Fac Low Low Dat Pro Fac Was Fac Upp Upp Zhi Pro Total Allies 31 | . . 2 . . 10 18 . . . . . 1 . . . . . . . Largest Group 19 | . . 2 2 . 10 19 18 . . . . 1 . . . . . . . Highest-Rated Group 338 | . . 42 42 . 173 338 314 . . . . 96 . . . . . . . Highest-Rated Ally 96 | . . 31 31 . 29 27 27 . . . . 96 . . . . . . . Total Orders 19 | . . . . . 4 6 4 . 5 . . . . . . . . . . STAY 8 | . . . . . 3 3 2 . . . . . . . . . . . . FOLLOW 6 | . . . . . 1 3 2 . . . . . . . . . . . . EXPLORE 2 | . . . . . . . . . 2 . . . . . . . . . . RETURN 3 | . . . . . . . . . 3 . . . . . . . . . . Ally Attacks 213 | . . . 27 . 99 9 70 . . . . 8 . . . . . . . Total Damage 3535 | . . . 397 . 1237 143 1522 . . . . 236 . . . . . . . Kills 50 | . . . 9 . 18 3 20 . . . . . . . . . . . . Allies Corrupted . | . . . . . . . . . . . . . . . . . . . . Allies Melted 5 | . . . . . . . 4 . . . . 1 . . . . . . . Intel | -11 -10 -10 -9 -8 -8 -8 -8 -6 -6 -6 -6 -5 -5 -5 -5 -5 -5 -5 -4 ------- Run | Yrd Mat Min Mat Mat Sto Rec Scr Fac Low Low Dat Pro Fac Was Fac Upp Upp Zhi Pro Active Infowar (turns) 14015 | 38 379 315 1009 851 732 647 3170 1256 1427 580 113 592 53 405 1167 547 191 132 411 Optics 99 | . . . 99 . . . . . . . . . . . . . . . . Sensors 6737 | . . . . . . . . 1248 1424 580 113 548 53 405 1085 547 191 132 411 Structural 3676 | . . . . . . . . 1144 484 519 . 186 53 405 885 . . . . Seismic 7141 | 38 379 315 1009 851 732 647 3170 . . . . . . . . . . . . Jamming 233 | . . . . . . . . . . . . . . . 233 . . . . ECM 2 | . . . . . . . . . . . . . . . . . 1 1 . Robot Analysis Total 10 | . . . . . . . 6 . . . . . . . . . . 4 . Derelict Logs Recovered 11 | . . . . . . . . . 3 1 . 2 . . . 3 2 . . Drone Launches 6 | . . . . . . . . . 3 . . . . . 3 . . . . Drone Recoveries 3 | . . . . . . . . . 2 . . . . . 1 . . . . Exploration | -11 -10 -10 -9 -8 -8 -8 -8 -6 -6 -6 -6 -5 -5 -5 -5 -5 -5 -5 -4 ------------- Run | Yrd Mat Min Mat Mat Sto Rec Scr Fac Low Low Dat Pro Fac Was Fac Upp Upp Zhi Pro Turns Passed 16955 | 124 379 323 1264 1123 1009 1302 3316 1425 1949 668 113 669 53 405 1449 645 191 132 416 Spaces Moved 9603 | 52 227 196 604 542 528 646 1789 764 799 389 83 399 39 229 1037 472 349 145 314 Core 79 | 11 . . . . . . . . . . . . . . 39 . 29 . . Treads 4926 | 41 227 196 451 542 371 646 834 764 655 . . . . . 35 164 . . . Legs 386 | . . . . . . . . . . . . . . . . . . 72 314 Wheels 3203 | . . . 153 . 157 . 955 . 144 389 83 399 39 229 655 . . . . Hover . | . . . . . . . . . . . . . . . . . . . . Flight 1009 | . . . . . . . . . . . . . . . 308 308 320 73 . Fastest Speed 35 | 50 160 160 110 160 150 160 126 158 160 150 135 135 135 135 35 40 35 42 120 Average Speed 146 | 160 160 160 152 160 157 160 160 164 194 156 135 140 135 150 109 118 38 81 120 Slowest Speed 250 | 250 160 160 160 160 160 160 242 240 242 245 135 150 135 165 245 160 115 120 120 Overloaded Moves 1 | . . . . . . . . . . . . . . . . 1 . . . Propulsion Burnouts . | . . . . . . . . . . . . . . . . . . . . Robots Hopped . | . . . . . . . . . . . . . . . . . . . . Potential Cave-ins 4 | . . . . . . . 1 . . . . . . . 3 . . . . Cave-ins Triggered . | . . . . . . . . . . . . . . . . . . . . Exploration Rate (%) 56 | 4 41 39 51 66 91 93 90 22 92 63 69 58 2 88 31 74 54 60 43 Regions Visited 19 Branch Regions 12 Pre-discovered Areas 15 | . . . . . . 5 5 . 1 . 1 . . . . . . 3 . Known Exits Taken 10 | . . . 1 1 1 . 1 1 . . . 1 . . 1 1 1 1 . Unknown Exits Taken 7 | 1 1 1 . . . 1 . . 1 1 1 . . . . . . . . Scrap Searched 13 | . . 1 . . . . 5 . 4 1 . . . . . . 1 . 1 Spaces Dug 41 | . . . 4 4 . . 2 9 3 . . 3 . . 8 3 . . 5 Terrain Destroyed 227 | . . . 27 29 5 6 31 52 8 4 . 20 . . 37 3 . . 5 Melee 4 | . . . . . . . . . . . . . . . . 3 . . 1 Projectile 52 | . . . 4 5 2 6 8 . 5 4 . 1 . . 17 . . . . AOE 145 | . . . 23 24 3 . 23 43 . . . 16 . . 13 . . . . Terrain Rammed . | . . . . . . . . . . . . . . . . . . . . Walls Destroyed . | . . . . . . . . . . . . . . . . . . . . Machines Disabled . | . . . . . . . . . . . . . . . . . . . . Actions | -11 -10 -10 -9 -8 -8 -8 -8 -6 -6 -6 -6 -5 -5 -5 -5 -5 -5 -5 -4 --------- Run | Yrd Mat Min Mat Mat Sto Rec Scr Fac Low Low Dat Pro Fac Was Fac Upp Upp Zhi Pro Total 11812 | 75 248 201 841 702 667 881 2189 896 1127 433 85 490 40 286 1227 521 405 155 343 Wait 1071 | 2 5 . 108 38 56 59 335 38 257 15 . 51 . . 38 17 35 . 17 Move 9586 | 51 226 195 604 541 527 645 1788 763 798 388 82 398 39 228 1036 471 348 144 314 Hop . | . . . . . . . . . . . . . . . . . . . . Pick Up 135 | 7 8 1 19 11 9 1 14 23 3 6 . 6 . 11 14 . 1 1 . Fast Attach 84 | 7 . . 5 5 4 1 5 3 4 1 . 1 . 6 22 8 4 7 1 Attach 75 | . . . 3 5 4 . 5 8 11 5 . 8 1 4 16 1 1 . 3 Detach 39 | . . . 3 3 2 . 3 1 1 3 3 3 . 4 5 2 4 . 2 Swap 191 | . 2 2 26 37 16 6 7 27 20 3 . 15 . 3 21 4 . 2 . Drop 137 | . 7 1 19 15 18 2 5 15 3 2 . 2 . 20 16 1 10 1 . Fire 314 | 8 . 2 54 46 30 16 27 18 30 10 . 6 . 10 56 . . . 1 Melee 25 | . . . . . . . . . . . . . . . 1 17 2 . 5 Ram 1 | . . . . . . . . . . . . . . . 1 . . . . Kick . | . . . . . . . . . . . . . . . . . . . . Crush 2 | . . . . 1 . . . . . . . . . . 1 . . . . Escape Stasis . | . . . . . . . . . . . . . . . . . . . . Rewire 152 | . . . . . 1 151 . . . . . . . . . . . . . Trap . | . . . . . . . . . . . . . . . . . . . . Miscellaneous . | . . . . . . . . . . . . . . . . . . . . Route ------- -11/Scrapyard -10/Materials (discovered 3 exits: *Mat / [*Min x2]) -10/Mines -9/Materials (discovered 4 exits: *Mat x3 / *Min) -8/Materials (discovered 4 exits: *Fac x2 / *Sto x2) -8/Storage (discovered 2 exits: Fac / *Rec) -8/Recycling (discovered 2 exits: Fac / *Scr) -8/Scraptown (discovered 2 exits: *Fac x2) -6/Factory (discovered 5 exits: *Fac x3 / *Low x2) -6/Lower Caves -6/Lower Caves (discovered 2 exits: *Fac / *Dat) -6/Data Miner -5/Proximity Caves -5/Factory (discovered 3 exits: Fac x2 / Upp) -5/Waste -5/Factory -5/Upper Caves -5/Upper Caves -5/Zhirov -4/Proximity Caves (discovered 1 exit: Fac) History --------- Turn | Location | Event 2 | -11/Scrapyard | Met Revision 17 19 | -11/Scrapyard | Discovered new exit (range 16) 125 | -11/Scrapyard | Entered Materials 196 | -10/Materials | Discovered new exit (range 14) 303 | -10/Materials | Build established: Mutant 325 | -10/Materials | Discovered new exit (range 8) 374 | -10/Materials | Discovered new exit (range 15) 504 | -10/Materials | Entered Mines 518 | -10/Mines | Discovered new exit (range 12) 670 | -10/Mines | Found a damaged Exp. Sensor Array with a note attached 674 | -10/Mines | Found Prototype Device 827 | -10/Mines | Entered Materials 827 | -9/Materials | Accompanied by 2 allies 827 | -9/Materials | Evolved 2 slots: Propulsion x1, Utility x1 832 | -9/Materials | Led the pair of lost Derelicts to an unsafe place 1003 | -9/Materials | Identified exit to Materials 1514 | -9/Materials | Repaired Med. Armor Plating 1668 | -9/Materials | Build established: Scavenger-Mutant 1815 | -9/Materials | Discovered new exit (range 14) 1985 | -9/Materials | Identified exit to Mines 2091 | -9/Materials | Entered another Materials area 2091 | -8/Materials | Evolved 2 slots: Propulsion x1, Utility x1 2553 | -8/Materials | Discovered new exit (range 6) 2561 | -8/Materials | Identified exit to Factory 2786 | -8/Materials | Discovered new exit (range 5) 2996 | -8/Materials | Identified exit to Storage 3107 | -8/Materials | Discovered exit to Factory (range 16) 3214 | -8/Materials | Entered Storage 3483 | -8/Storage | Assisted by bots powering up and referring to "LRC-V3" 3540 | -8/Storage | Lost 3 allies 3642 | -8/Storage | Identified exit to Recycling 3642 | -8/Storage | Discovered exit to Factory (range 12) 4218 | -8/Storage | Used back door to open Recycling access 4223 | -8/Storage | Entered Recycling 4223 | -8/Recycling | Accompanied by 1 ally 4766 | -8/Recycling | Identified exit to Factory 4918 | -8/Recycling | Build established: Commander-Mutant 5056 | -8/Recycling | Scanned before Scraplab entrance 5080 | -8/Recycling | Entered Scraplab 5093 | -8/Recycling | Discovered new exit (range 2) 5525 | -8/Recycling | Entered Scraptown 5525 | -8/Scraptown | Accompanied by 18 allies 5877 | -8/Scraptown | Discovered exit to Factory (range 13) 6026 | -8/Scraptown | Visited TADAMA 6049 | -8/Scraptown | Visited Cyclists 6093 | -8/Scraptown | Visited IN-MT5's Study 6415 | -8/Scraptown | Visited Awakened 6470 | -8/Scraptown | Visited SPCMW 6574 | -8/Scraptown | Visited Assassins FH 6672 | -8/Scraptown | Visited UFD Registry 6672 | -8/Scraptown | Registered with UFD as "Pulsemech" 6751 | -8/Scraptown | Visited LU-1G1's Boring Crew 6869 | -8/Scraptown | Visited Junk Cannon Lab 6881 | -8/Scraptown | Found Prototype Special Weapon 6944 | -8/Scraptown | Visited Analyses Database 7136 | -8/Scraptown | Visited Cartography Club 7158 | -8/Scraptown | Visited DA-N13 Charitable Foundation 7167 | -8/Scraptown | Found DCF Scrap (29 items) 7349 | -8/Scraptown | Learned location of Lower Caves (-7) 7349 | -8/Scraptown | Learned 12 Materials zone layouts 7349 | -8/Scraptown | Learned 16 Materials zone layouts 7349 | -8/Scraptown | Learned 20 Factory zone layouts 7349 | -8/Scraptown | Learned 8 Research zone layouts 7349 | -8/Scraptown | Learned 20 Upper Caves zone layouts 7349 | -8/Scraptown | Learned 4 Armory zone layouts 7349 | -8/Scraptown | Learned location of 1 exit from Factory 7349 | -8/Scraptown | Learned location of 2 exits from Upper Caves 7349 | -8/Scraptown | Learned location of 2 exits from Proximity Caves 7416 | -8/Scraptown | Found Deep Structural Scanner 7465 | -8/Scraptown | Visited Infowarlord's Domain 7465 | -8/Scraptown | Identified Exp. Sensor Array 7475 | -8/Scraptown | Found Exp. Terrain Scanner 7504 | -8/Scraptown | Visited Chapter 10 7529 | -8/Scraptown | Visited Botcube Research 7535 | -8/Scraptown | Found Botcube 7557 | -8/Scraptown | Visited Supply Room 7577 | -8/Scraptown | Visited A0-MCA Data Center 7585 | -8/Scraptown | Given an A- rating by A0-MCA 8159 | -8/Scraptown | Met Optimus 8159 | -8/Scraptown | Accepted into 0bPrime 8559 | -8/Scraptown | Civil war broke out across Scraptown 8570 | -8/Scraptown | Found Prototype Special Weapon 8660 | -8/Scraptown | Lost 9 allies 8787 | -8/Scraptown | Lost 21 allies 8840 | -8/Scraptown | Lost 10 parts (2p2n4u2w) 8841 | -8/Scraptown | Entered Factory 8841 | -6/Factory | Evolved 4 slots: Propulsion x2, Utility x1, Weapon x1 8842 | -6/Factory | Identified exit to Factory 9074 | -6/Factory | Discovered exit to Factory (range 9) 9157 | -6/Factory | Build established: Scavenger-Skirmisher 9177 | -6/Factory | Identified LU-1G1's Laser Shovel 9799 | -6/Factory | Identified exit to Lower Caves 9946 | -6/Factory | Repaired Broken Arm. Treads 10266 | -6/Factory | Entered Lower Caves 10393 | -6/Lower Caves | Build established: Scavenger-Gunner 10520 | -6/Lower Caves | Learned Factory stockpile data 10580 | -6/Lower Caves | Identified Junk Cannon 10596 | -6/Lower Caves | Learned location of 1 exit from Factory 11273 | -6/Lower Caves | Attracted the attention of an 0b10 checkpoint 11389 | -6/Lower Caves | Spotted B-75 Beast 11856 | -6/Lower Caves | Core integrity fell below 50% 11869 | -6/Lower Caves | Destroyed B-75 Beast 11900 | -6/Lower Caves | Lost 7 parts (3n1u3w) 12117 | -6/Lower Caves | Build established: Scavenger-Mutant 12152 | -6/Lower Caves | Discovered new exit (range 12) 12215 | -6/Lower Caves | Entered another Lower Caves area 12244 | -6/Lower Caves | Encountered a Warlord checkpoint 12291 | -6/Lower Caves | Learned location of 1 exit from Factory 12376 | -6/Lower Caves | Discovered exit to Factory (range 9) 12589 | -6/Lower Caves | Build established: Scavenger-Skirmisher 12784 | -6/Lower Caves | Discovered new exit (range 14) 12883 | -6/Lower Caves | Entered Data Miner 12885 | -6/Data Miner | Discovered new exit (range 6) 12911 | -6/Data Miner | Met Data Miner 12938 | -6/Data Miner | Learned location of Section 7 (-3) 12938 | -6/Data Miner | Acquired the access code to Warlord's prototype stash 12962 | -6/Data Miner | Received God Mode back door access code from Data Miner 12996 | -6/Data Miner | Entered Proximity Caves 12998 | -5/Proximity Caves | Attracted the attention of an 0b10 checkpoint 13168 | -5/Proximity Caves | Escorted by Enhanced Grunt 13485 | -5/Proximity Caves | Build established: Mutant 13542 | -5/Proximity Caves | Learned Factory terminal intel 13642 | -5/Proximity Caves | Learned location of 1 exit from Factory 13665 | -5/Proximity Caves | Entered Factory 13665 | -5/Factory | Evolved 2 slots: Power x1, Utility x1 13666 | -5/Factory | Identified exit to Upper Caves 13666 | -5/Factory | Identified exit to Factory 13668 | -5/Factory | Loaded intel: 26 terminal locations 13718 | -5/Factory | Sucked down chute 13718 | -5/Factory | Entered Waste 13718 | -5/Waste | The area was eerily silent 13775 | -5/Waste | Found Unknown Protection 13818 | -5/Waste | A Compactor rumbled back to life 13819 | -5/Waste | Destroyed C-40 Crusher 13860 | -5/Waste | Found Broken Adv. Powered Armor 14090 | -5/Waste | Discovered new exit (range 12) 14123 | -5/Waste | Entered Factory 14254 | -5/Factory | Build established: Scavenger-Tank 15354 | -5/Factory | Cargo convoy interrupted 15376 | -5/Factory | Incoming assault squad redirected 15389 | -5/Factory | Incoming assault squad redirected 15400 | -5/Factory | System corruption reached 10% 15408 | -5/Factory | Released all parts (7) 15419 | -5/Factory | Core integrity fell below 50% 15423 | -5/Factory | Destroyed 7 combat bots 15446 | -5/Factory | Lost 19 parts (3p6n4u6w) 15469 | -5/Factory | Core integrity fell below 20% 15565 | -5/Factory | Discovered exit to Upper Caves (range 11) 15572 | -5/Factory | Entered Upper Caves 15573 | -5/Upper Caves | Identified exit to Upper Caves 15718 | -5/Upper Caves | Learned Factory emergency access door positions 15723 | -5/Upper Caves | Learned location of 1 exit from Factory 15745 | -5/Upper Caves | Learned Factory emergency access door positions 15946 | -5/Upper Caves | Entered an active Warlord outpost 15974 | -5/Upper Caves | Learned Factory terminal intel 15974 | -5/Upper Caves | Learned Armory terminal intel 15974 | -5/Upper Caves | Learned Research garrison access intel 15974 | -5/Upper Caves | Learned Armory garrison access intel 16112 | -5/Upper Caves | Build established: Scavenger-Mutant 16217 | -5/Upper Caves | Entered another Upper Caves area 16218 | -5/Upper Caves | Identified exit to Zhirov 16326 | -5/Upper Caves | Learned Factory emergency access door positions 16368 | -5/Upper Caves | Encountered a Warlord checkpoint 16380 | -5/Upper Caves | Learned Factory stockpile data 16408 | -5/Upper Caves | Entered Zhirov 16408 | -5/Zhirov | Discovered new exit (range 3) 16416 | -5/Zhirov | Met Zhirov 16428 | -5/Zhirov | Found Alien Artifact 16428 | -5/Zhirov | Identified Integrated Reactor 16428 | -5/Zhirov | Installed Integrated Reactor, increased core energy generation (+10) 16434 | -5/Zhirov | Found Alien Artifact 16494 | -5/Zhirov | Learned location of Testing (-2) 16494 | -5/Zhirov | Learned location of Command (-1) 16505 | -5/Zhirov | Zhirov requested help retrieving the SGEMP Prototype 16538 | -5/Zhirov | Identified exit to Proximity Caves 16540 | -5/Zhirov | Entered Proximity Caves 16542 | -4/Proximity Caves | Spotter reported a threat 16543 | -4/Proximity Caves | Spotter reported a threat 16544 | -4/Proximity Caves | Build established: Mutant 16595 | -4/Proximity Caves | Spotter reported a threat 16636 | -4/Proximity Caves | Spotter reported a threat 16790 | -4/Proximity Caves | Spotter reported a threat 16806 | -4/Proximity Caves | Spotter reported a threat 16842 | -4/Proximity Caves | Spotter reported a threat 16895 | -4/Proximity Caves | Spotter reported a threat 16949 | -4/Proximity Caves | Spotted B-86 Titan 16956 | -4/Proximity Caves | Destroyed by B-86 Titan with Hardcell Cannon Last Messages --------------- 16806_ N-01 Spotter sends a signal. 16806_ ALERT: Unidentified potential threat approaching Complex 0b10. 16817_ System corrupted: Component data lost. 16840_ /RDKUOIWAF>TUY